bitfinex/quotes_SOLUSD_20250818
["timestamp","ask_amount","ask_price","bid_price","bid_amount"]
[1755547204613,5.72365671,183.51,183.48,5.65013662]
[1755547204822,5.72365671,183.51,183.49,0.69]
[1755547205034,5.72365671,183.5,183.48,5.65013662]
[1755547205186,0.7,183.54,183.48,5.65013662]
[1755547205187,5.72365671,183.49,183.48,0.2]
[1755547205386,5.72365671,183.49,183.48,5.6501853]
[1755547205613,44.72821773,183.55,183.48,5.6501853]
[1755547205814,5.72365671,183.51,183.48,6.3401853]
[1755547206017,5.72365671,183.49,183.48,0.2]
[1755547206226,0.7,183.51,183.48,0.2]
[1755547206512,5.72365671,183.49,183.48,0.2]
[1755547207025,12.14731342,183.49,183.48,0.2]
[1755547207221,11.44731342,183.48,183.47,0.03]
[1755547207426,27.25352899,183.48,183.46,0.03]
[1755547207605,37.17443617,183.46,183.4,0.2]
[1755547207929,5.72365671,183.44,183.4,0.2]
[1755547208108,42.25982157,183.45,183.4,0.2]
[1755547208109,5.72365671,183.43,183.4,0.2]
[1755547208309,33.17439373,183.43,183.4,0.2]
[1755547208505,9.70408908,183.42,183.4,0.2]
[1755547209525,18.78595229,183.42,183.4,0.2]
[1755547209702,32.41587269,183.42,183.37,0.03]
[1755547209896,9.03408908,183.38,183.37,0.03]
[1755547210411,9.70408908,183.38,183.37,0.03]
[1755547211509,15.15724645,183.38,183.37,0.03]
[1755547213524,9.03408908,183.38,183.37,0.03]
[1755547214929,5.45293807,183.39,183.37,0.03]
[1755547215226,9.03408908,183.38,183.37,0.03]
[1755547215722,9.03408908,183.38,183.37,0.72]
[1755547216226,38.64,183.41,183.37,0.72]
[1755547216436,0.67,183.45,183.37,9.75408908]
[1755547216600,9.03408908,183.42,183.38,0.69]
[1755547217120,47.65408908,183.44,183.4,9.03408908]
[1755547217626,47.65408908,183.44,183.42,5.45196816]
[1755547217821,47.65408908,183.44,183.43,0.69]
[1755547218195,47.65408908,183.44,183.41,5.45219978]
[1755547218393,38.62,183.44,183.42,0.69]
[1755547218619,47.65408908,183.44,183.42,0.69]
[1755547218821,9.03408908,183.45,183.43,0.69]
[1755547219024,9.03408908,183.45,183.42,20.0]
[1755547219229,9.03408908,183.43,183.42,20.0]
[1755547220417,9.67408908,183.43,183.42,20.0]
[1755547220613,48.31408908,183.43,183.37,0.72]
[1755547220831,9.03408908,183.38,183.37,0.03]
[1755547222523,15.15724645,183.38,183.37,0.03]
[1755547222713,9.03408908,183.38,183.37,0.03]
[1755547223511,38.64,183.4,183.37,0.72]
[1755547223809,9.03408908,183.41,183.38,0.69]
[1755547224011,9.03408908,183.4,183.38,6.14312875]
[1755547224417,38.64,183.43,183.38,6.14312875]
[1755547224418,9.03408908,183.42,183.39,0.69]
[1755547224732,9.03408908,183.42,183.38,5.45312875]
[1755547224733,47.67408908,183.43,183.4,0.69]
[1755547224938,47.67408908,183.43,183.41,0.69]
[1755547225843,9.03408908,183.42,183.37,5.48343242]
[1755547226018,9.03408908,183.4,183.37,5.48343242]
[1755547226209,9.03408908,183.4,183.38,0.69]
[1755547226708,9.03408908,183.42,183.39,0.69]
[1755547226914,9.03408908,183.42,183.4,0.69]
[1755547227737,9.03408908,183.42,183.38,0.69]
[1755547228234,9.03408908,183.39,183.37,0.03]
[1755547228409,9.03408908,183.38,183.37,0.03]
[1755547228609,4.31019919,183.41,183.37,0.03]
[1755547228825,9.03408908,183.38,183.37,0.03]
[1755547229414,9.03408908,183.41,183.37,6.17345476]
[1755547229633,9.03408908,183.4,183.38,0.69]
[1755547230118,9.03408908,183.4,183.38,6.14311177]
[1755547231148,9.03408908,183.41,183.39,0.69]
[1755547231715,9.03408908,183.41,183.38,5.45311177]
[1755547231923,9.03408908,183.4,183.38,6.14311177]
[1755547232118,3.64019919,183.42,183.38,6.14311177]
[1755547232434,9.03408908,183.42,183.39,0.69]
[1755547232627,9.03408908,183.42,183.4,0.69]
[1755547232826,9.03408908,183.42,183.38,5.45311177]
[1755547233029,9.03408908,183.41,183.37,25.48336001]
[1755547233217,9.03408908,183.39,183.37,25.48336001]
[1755547233419,9.03408908,183.39,183.37,20.03]
[1755547233618,9.03408908,183.39,183.37,25.48338825]
[1755547233924,9.03408908,183.39,183.37,26.17338825]
[1755547234122,9.03408908,183.4,183.37,26.17338825]
[1755547235247,9.03408908,183.4,183.38,0.69]
[1755547236441,3.64651765,183.42,183.39,0.69]
[1755547236756,9.03408908,183.43,183.38,29.03408908]
[1755547236934,9.03408908,183.43,183.4,5.4525627]
[1755547237121,9.03408908,183.42,183.4,5.4525627]
[1755547237434,9.03408908,183.42,183.4,6.1425627]
[1755547237652,9.03408908,183.42,183.4,0.69]
[1755547237857,9.03408908,183.42,183.39,5.45277616]
[1755547238017,9.03408908,183.42,183.39,6.12277616]
[1755547239438,9.03408908,183.41,183.38,25.45309308]
[1755547239820,9.03408908,183.39,183.38,20.0]
[1755547240047,9.74408908,183.39,183.37,0.03]
[1755547240251,9.03408908,183.38,183.37,0.03]
[1755547241447,9.03408908,183.38,183.37,0.7]
[1755547241952,9.03408908,183.39,183.37,0.7]
[1755547242547,9.10260857,183.42,183.37,6.15344609]
[1755547242738,9.03408908,183.39,183.37,6.15344609]
[1755547244414,5.45175527,183.43,183.37,6.15344609]
[1755547244415,3.65445396,183.43,183.38,0.67]
[1755547244619,5.73076977,183.42,183.39,0.67]
[1755547245035,5.73076977,183.4,183.37,5.48344609]
[1755547245234,5.73076977,183.39,183.37,0.03]
[1755547245844,5.73076977,183.38,183.37,0.03]
[1755547246035,5.73076977,183.38,183.37,20.03]
[1755547246233,0.06,183.41,183.37,20.03]
[1755547246432,5.73076977,183.38,183.37,20.03]
[1755547246948,5.73076977,183.39,183.37,25.48345476]
[1755547247139,5.79076977,183.41,183.38,0.67]
[1755547247646,5.79076977,183.41,183.37,25.48345476]
[1755547248021,5.79076977,183.41,183.37,26.15345476]
[1755547248224,0.06,183.41,183.38,0.67]
[1755547248638,5.79076977,183.41,183.38,0.67]
[1755547249528,0.06,183.41,183.38,0.67]
[1755547250246,5.79076977,183.41,183.38,5.45306796]
[1755547250752,5.73076977,183.4,183.38,5.45306796]
[1755547251141,5.73076977,183.4,183.38,6.12306796]
[1755547251853,5.73076977,183.4,183.38,26.12306796]
[1755547252347,0.06,183.41,183.39,0.67]
[1755547253429,5.73076977,183.4,183.38,25.45306796]
[1755547253628,0.77,183.41,183.38,25.45306796]
[1755547253845,0.06,183.41,183.39,0.67]
[1755547254156,0.06,183.41,183.4,0.67]
[1755547254736,0.06,183.41,183.39,5.45260256]
[1755547255059,0.06,183.41,183.39,6.12260256]
[1755547255449,0.06,183.41,183.4,0.67]
[1755547255753,0.06,183.41,183.39,6.12260256]
[1755547256251,5.73076977,183.4,183.38,25.45310399]
[1755547256440,5.73076977,183.39,183.38,20.0]
[1755547256638,10.1042345,183.39,183.38,20.0]
[1755547256837,3.66346473,183.39,183.38,25.45315737]
[1755547257038,5.73076977,183.4,183.38,25.45315737]
[1755547257352,5.73076977,183.39,183.38,25.45315737]
[1755547257730,5.73076977,183.4,183.38,25.45315737]
[1755547258331,9.39607303,183.39,183.38,20.0]
[1755547258830,14.17992053,183.39,183.37,0.03]
[1755547259040,5.51232886,183.41,183.37,0.03]
[1755547259041,10.10607303,183.38,183.37,0.03]
[1755547260234,9.39607303,183.38,183.37,0.03]
[1755547260741,3.66530326,183.38,183.37,0.7]
[1755547261432,38.68,183.41,183.37,31.88422453]
[1755547261631,3.66468911,183.4,183.38,0.67]
[1755547261827,0.06,183.41,183.38,0.67]
[1755547262064,3.66483106,183.4,183.38,0.67]
[1755547262230,0.06,183.4,183.38,0.67]
[1755547262657,0.06,183.4,183.39,5.45286002]
[1755547262858,3.72528202,183.4,183.39,6.12286002]
[1755547263270,0.06,183.4,183.39,6.12286002]
[1755547263458,0.06,183.4,183.39,5.45286002]
[1755547264748,0.06,183.4,183.39,0.67]
[1755547265262,3.72476917,183.4,183.39,0.67]
[1755547266066,0.06,183.4,183.39,6.40076977]
[1755547266362,0.06,183.4,183.39,26.40076977]
[1755547266765,0.06,183.4,183.39,31.85362979]
[1755547268045,0.06,183.4,183.39,46.95984536]
[1755547269970,0.06,183.41,183.4,15.10621557]
[1755547270169,0.06,183.41,183.4,41.48698534]
[1755547271541,0.06,183.41,183.4,46.93954804]
[1755547272876,0.06,183.41,183.4,85.53954804]
[1755547273074,0.06,183.42,183.4,86.08480431]
[1755547273266,0.06,183.43,183.41,6.38076977]
[1755547273267,1e-08,183.43,183.41,6.38076977]
[1755547273573,1e-08,183.43,183.42,70.33076977]
[1755547273770,1e-08,183.43,183.42,70.98076977]
[1755547274546,0.06,183.46,183.42,86.08698534]
[1755547274762,0.06,183.46,183.44,20.83698534]
[1755547274977,0.06,183.46,183.44,64.05137374]
[1755547275362,0.06,183.46,183.44,70.43214351]
[1755547275551,0.06,183.46,183.44,69.78214351]
[1755547276061,0.06,183.46,183.44,70.43214351]
[1755547276464,0.06,183.46,183.44,69.78214351]
[1755547279871,0.06,183.46,183.44,70.43214351]
[1755547281171,0.06,183.46,183.44,69.78214351]
[1755547282275,0.65,183.45,183.44,64.05137374]
[1755547282486,6.38076977,183.45,183.44,20.0]
[1755547282772,0.65,183.45,183.44,20.0]
[1755547283891,0.65,183.45,183.44,25.45137374]
[1755547284977,0.65,183.45,183.41,20.0]
[1755547285150,5.73076977,183.43,183.41,58.6]
[1755547285349,5.73076977,183.43,183.41,25.45217275]
[1755547285583,0.59,183.42,183.41,25.45217275]
[1755547287177,5.79076977,183.45,183.41,26.10217275]
[1755547287352,6.51076977,183.45,183.41,26.10217275]
[1755547287875,0.06,183.45,183.41,25.45217275]
[1755547288077,0.06,183.45,183.43,5.73076977]
[1755547288285,0.06,183.45,183.44,44.33076977]
[1755547288669,0.06,183.45,183.44,38.6]
[1755547289169,0.06,183.45,183.44,44.70137374]
[1755547289676,0.06,183.45,183.44,50.43214351]
[1755547290081,0.06,183.45,183.44,64.05137374]
[1755547290685,0.06,183.45,183.44,58.6]
[1755547290887,0.78,183.45,183.44,58.6]
[1755547291089,6.51076977,183.45,183.44,20.0]
[1755547291388,10.16382977,183.45,183.42,44.05189615]
[1755547291559,5.73076977,183.44,183.42,44.05189615]
[1755547291763,6.51076977,183.45,183.42,44.05189615]
[1755547292184,5.79076977,183.45,183.42,44.05189615]
[1755547292765,0.06,183.45,183.43,0.65]
[1755547293089,0.06,183.45,183.42,44.05189615]
[1755547293272,0.06,183.45,183.42,44.70189615]
[1755547293592,6.51076977,183.45,183.42,44.05189615]
[1755547293891,0.06,183.45,183.43,0.65]
[1755547294484,0.06,183.45,183.42,44.05189615]
[1755547294684,0.06,183.45,183.42,44.70189615]
[1755547295281,0.06,183.45,183.43,0.65]
[1755547295481,0.06,183.45,183.44,38.6]
[1755547296373,0.06,183.45,183.44,58.6]
[1755547296768,6.51076977,183.45,183.44,20.0]
[1755547296988,10.16049198,183.45,183.44,20.0]
[1755547297901,9.44049198,183.45,183.44,20.0]
[1755547298495,5.79076977,183.45,183.44,25.45137374]
[1755547298739,0.06,183.45,183.44,26.15137374]
[1755547299170,0.06,183.45,183.44,31.88214351]
[1755547300070,0.06,183.45,183.44,26.15137374]
[1755547300306,0.06,183.45,183.44,31.88214351]
[1755547301697,0.06,183.45,183.44,64.73137374]
[1755547302091,0.06,183.45,183.44,26.15137374]
[1755547302502,0.06,183.45,183.44,64.73137374]
[1755547302810,0.06,183.45,183.44,64.03137374]
[1755547303174,0.06,183.45,183.44,26.15137374]
[1755547303893,0.06,183.45,183.44,64.73137374]
[1755547304277,0.06,183.45,183.44,26.15137374]
[1755547304612,0.06,183.45,183.44,64.73137374]
[1755547304776,0.06,183.45,183.44,64.03137374]
[1755547304978,0.06,183.45,183.44,25.45137374]
[1755547305288,0.06,183.45,183.44,64.03137374]
[1755547305487,0.06,183.45,183.44,64.73137374]
[1755547305701,0.06,183.45,183.44,26.15137374]
[1755547305906,0.06,183.45,183.44,64.73137374]
[1755547307005,0.06,183.45,183.44,26.15137374]
[1755547307314,0.06,183.45,183.44,64.03137374]
[1755547308882,0.06,183.45,183.44,64.73137374]
[1755547309995,0.06,183.45,183.44,64.03137374]
[1755547310301,0.06,183.45,183.44,64.73137374]
[1755547310812,0.06,183.45,183.44,70.46214351]
[1755547311510,0.06,183.45,183.44,64.73137374]
[1755547311807,0.06,183.45,183.44,25.45137374]
[1755547312109,0.06,183.45,183.44,64.03137374]
[1755547312485,0.06,183.45,183.44,25.45137374]
[1755547312685,0.06,183.45,183.44,64.03137374]
[1755547313011,0.06,183.45,183.44,64.76137374]
[1755547313889,0.06,183.45,183.44,85.59835908]
[1755547314090,0.06,183.46,183.45,35.04621557]
[1755547314307,0.06,183.46,183.45,42.02209299]
[1755547314508,0.06,183.46,183.45,41.47698534]
[1755547314911,0.06,183.46,183.45,25.39107658]
[1755547315221,5.79076977,183.46,183.45,25.39107658]
[1755547315514,0.06,183.46,183.45,63.97107658]
[1755547317017,0.06,183.46,183.45,69.70184635]
[1755547317588,0.06,183.46,183.45,70.40184635]
[1755547318215,0.06,183.46,183.45,85.50806192]
[1755547318520,0.06,183.46,183.45,79.77729215]
[1755547318686,0.06,183.46,183.45,85.50806192]
[1755547319913,0.06,183.47,183.46,34.88621557]
[1755547320120,0.06,183.47,183.46,21.53698534]
[1755547320619,0.06,183.47,183.46,5.73076977]
[1755547321201,0.06,183.47,183.46,11.18154923]
[1755547321388,0.06,183.47,183.46,26.9877648]
[1755547321792,1e-08,183.47,183.46,26.9877648]
[1755547322589,1e-08,183.47,183.46,27.53284274]
[1755547322797,1e-08,183.48,183.46,73.31284274]
[1755547323019,1e-08,183.49,183.47,60.11698534]
[1755547323198,1e-08,183.49,183.48,26.56775511]
[1755547323400,1e-08,183.49,183.48,32.71794041]
[1755547323820,1e-08,183.49,183.48,26.98717064]
[1755547325711,0.73,183.56,183.48,26.98717064]
[1755547325712,1e-08,183.51,183.5,34.88621556]
[1755547325913,1e-08,183.51,183.5,79.72194445]
[1755547326095,1e-08,183.51,183.5,80.42194445]
[1755547327394,1e-08,183.51,183.5,85.87153573]
[1755547327602,1e-08,183.51,183.5,218.57153573]
[1755547327830,1e-08,183.51,183.5,218.02657661]
[1755547331342,1e-08,183.51,183.5,178.76657661]
[1755547331514,1e-08,183.51,183.5,217.32657661]
[1755547331716,0.68,183.53,183.5,217.32657661]
[1755547331717,0.68,183.53,183.51,19.77999998]
[1755547332055,5.79076977,183.56,183.52,38.56]
[1755547332648,0.64,183.55,183.52,38.56]
[1755547333019,0.64,183.54,183.52,38.56]
[1755547333328,5.79076977,183.56,183.53,5.44870048]
[1755547333650,0.06,183.56,183.54,38.56]
[1755547333844,0.64,183.55,183.54,38.56]
[1755547334730,6.37076977,183.55,183.54,38.56]
[1755547335242,0.64,183.55,183.54,38.56]
[1755547335435,6.37076977,183.55,183.54,38.56]
[1755547335811,0.64,183.55,183.54,44.00840361]
[1755547337144,0.64,183.55,183.54,38.56]
[1755547337329,6.37076977,183.55,183.54,38.56]
[1755547339029,6.37076977,183.55,183.52,19.77999998]
[1755547339228,5.73076977,183.53,183.52,19.77999998]
[1755547339437,5.73076977,183.53,183.52,58.33999998]
[1755547339640,6.41076977,183.53,183.52,58.33999998]
[1755547340444,0.68,183.53,183.51,19.77999998]
[1755547340630,6.41076977,183.52,183.51,19.77999998]
[1755547342642,0.68,183.52,183.51,19.77999998]
[1755547343728,5.73076977,183.53,183.51,19.77999998]
[1755547344033,6.41076977,183.54,183.51,25.22923323]
[1755547344426,5.73076977,183.55,183.52,38.56]
[1755547344748,5.73076977,183.55,183.52,39.26]
[1755547345637,5.73076977,183.55,183.52,44.00889202]
[1755547345852,5.79076977,183.56,183.52,44.70889202]
[1755547346139,0.74,183.56,183.52,44.70889202]
[1755547346920,6.41076977,183.55,183.52,44.00889202]
[1755547347228,0.68,183.54,183.52,5.44889202]
[1755547347539,5.73076977,183.55,183.51,19.80999998]
[1755547347540,6.41076977,183.53,183.51,19.80999998]
[1755547347745,5.73076977,183.52,183.51,58.36999998]
[1755547347942,6.41076977,183.52,183.51,19.80999998]
[1755547348921,5.73076977,183.52,183.51,19.80999998]
[1755547349333,5.73076977,183.52,183.51,58.36999998]
[1755547349626,6.41076977,183.52,183.51,58.36999998]
[1755547349821,6.41076977,183.52,183.51,19.80999998]
[1755547350050,11.85976715,183.52,183.51,0.03]
[1755547351981,37.85976715,183.52,183.51,0.03]
[1755547352147,41.50397326,183.52,183.51,0.03]
[1755547353957,19.55238844,183.52,183.51,0.03]
[1755547356058,18.87238844,183.52,183.51,0.73]
[1755547356555,14.82397326,183.52,183.51,0.03]
[1755547356763,11.17976715,183.52,183.51,0.03]
[1755547357158,14.82361921,183.52,183.51,0.73]
[1755547357454,11.17976715,183.52,183.51,0.73]
[1755547357765,5.73076977,183.52,183.51,0.73]
[1755547358564,3.64385206,183.53,183.51,0.73]
[1755547358565,9.37462183,183.53,183.51,0.73]
[1755547358772,5.73076977,183.53,183.51,0.73]
[1755547358973,5.73076977,183.52,183.51,0.73]
[1755547359166,5.73076977,183.52,183.51,0.03]
[1755547362154,15.49325088,183.52,183.51,0.03]
[1755547362362,19.54141613,183.52,183.51,0.03]
[1755547365780,19.60141613,183.52,183.51,0.03]
[1755547366394,15.55325088,183.52,183.51,0.03]
[1755547366569,15.95598529,183.52,183.51,0.03]
[1755547366768,31.73076977,183.5,183.49,0.03]
[1755547366968,73.9342535,183.5,183.49,0.03]
[1755547367173,78.64973369,183.5,183.49,0.03]
[1755547368454,84.09932497,183.5,183.49,0.03]
[1755547369265,80.05384478,183.5,183.49,0.03]
[1755547369778,85.78461455,183.5,183.49,0.03]
[1755547369985,11.46153954,183.48,183.47,0.03]
[1755547370296,26.0,183.45,183.44,0.03]
[1755547370461,83.42730246,183.45,183.44,0.03]
[1755547370769,84.09730246,183.45,183.44,0.03]
[1755547371169,84.82904504,183.45,183.44,0.03]
[1755547371376,105.66603038,183.45,183.44,0.03]
[1755547371567,5.73076977,183.43,183.38,0.69]
[1755547371768,44.29076977,183.43,183.38,0.69]
[1755547371965,44.96076977,183.43,183.38,0.69]
[1755547372381,48.59297477,183.43,183.38,0.69]
[1755547372881,48.59297477,183.43,183.38,0.03]
[1755547372882,69.15086127,183.43,183.38,0.03]
[1755547373084,31.73076977,183.41,183.38,0.03]
[1755547373386,73.91926879,183.41,183.38,0.03]
[1755547373584,70.29076977,183.41,183.38,0.03]
[1755547374269,75.74303518,183.41,183.38,0.03]
[1755547374476,75.74303518,183.41,183.4,0.69]
[1755547374673,75.74303518,183.41,183.4,0.03]
[1755547374874,76.41303518,183.41,183.4,0.03]
[1755547375064,75.74303518,183.41,183.4,0.03]
[1755547375570,81.14453836,183.41,183.4,0.03]
[1755547375903,70.29076977,183.41,183.4,0.69]
[1755547376199,75.74303518,183.41,183.4,0.03]
[1755547376506,76.41303518,183.41,183.4,0.03]
[1755547376670,75.74303518,183.41,183.4,0.03]
[1755547377291,5.73076977,183.41,183.4,0.03]
[1755547377471,26.0,183.42,183.4,0.69]
[1755547377678,5.73076977,183.41,183.4,0.69]
[1755547377994,5.73076977,183.41,183.4,0.03]
[1755547378574,5.73076977,183.41,183.4,0.69]
[1755547379268,11.18303518,183.41,183.4,0.03]
[1755547379472,11.85303518,183.41,183.4,0.03]
[1755547379974,11.18303518,183.41,183.4,0.03]
[1755547381798,5.73076977,183.41,183.4,0.03]
[1755547382001,5.73076977,183.41,183.4,0.69]
[1755547382804,5.45170814,183.43,183.4,0.69]
[1755547383002,5.73076977,183.41,183.4,0.03]
[1755547383377,6.40076977,183.41,183.4,0.03]
[1755547383595,10.02945496,183.41,183.4,0.03]
[1755547384079,15.48172037,183.41,183.4,0.03]
[1755547384596,14.81172037,183.41,183.4,0.03]
[1755547385687,44.29076977,183.41,183.4,0.69]
[1755547386303,44.29076977,183.41,183.4,0.03]
[1755547386508,50.41303518,183.41,183.4,0.03]
[1755547387185,53.25825292,183.41,183.4,0.03]
[1755547388699,56.88327564,183.41,183.4,0.03]
[1755547388911,76.0172926,183.41,183.4,0.03]
[1755547391298,78.2037426,183.41,183.4,0.03]
[1755547393114,78.2037426,183.41,183.38,0.03]
[1755547393115,15.10621557,183.4,183.38,0.03]
[1755547393406,41.10621557,183.37,183.36,0.2]
[1755547393611,98.77838417,183.37,183.36,0.2]
[1755547393909,101.66403346,183.37,183.36,0.2]
[1755547394606,100.96403346,183.37,183.36,0.2]
[1755547395201,106.41748822,183.37,183.36,0.2]
[1755547395516,79.84973311,183.37,183.36,0.2]
[1755547395829,107.11748822,183.37,183.36,0.2]
[1755547397515,15.10621557,183.36,183.34,0.03]
[1755547397726,44.29076977,183.35,183.34,0.03]
[1755547397891,52.63902705,183.35,183.34,0.03]
[1755547398313,67.74524262,183.35,183.34,0.03]
[1755547399398,72.49929225,183.35,183.34,0.03]
[1755547400619,73.19929225,183.35,183.34,0.03]
[1755547401494,68.47605769,183.35,183.34,0.03]
[1755547403935,5.73076977,183.35,183.34,0.7]
[1755547404125,38.56,183.35,183.34,0.7]
[1755547404312,53.36736498,183.35,183.34,0.7]
[1755547404514,49.74694877,183.35,183.34,0.7]
[1755547406013,44.29076977,183.35,183.34,0.7]
[1755547407659,47.13646193,183.35,183.34,0.7]
[1755547408010,52.59051156,183.35,183.34,0.03]
[1755547408223,56.2163365,183.35,183.34,0.03]
[1755547408422,61.6721015,183.35,183.34,0.03]
[1755547409433,66.40306091,183.35,183.34,0.03]
[1755547410525,65.70306091,183.35,183.34,0.03]
[1755547410903,56.21805187,183.35,183.34,0.7]
[1755547411106,56.2163365,183.35,183.34,0.7]
[1755547411530,60.25150886,183.35,183.34,0.7]
[1755547411827,54.7977088,183.35,183.34,0.7]
[1755547412402,50.76228687,183.35,183.34,0.7]
[1755547414831,56.2163365,183.35,183.34,0.03]
[1755547415035,60.25833949,183.35,183.34,0.03]
[1755547415250,60.95833949,183.35,183.34,0.03]
[1755547415842,76.06455506,183.35,183.34,0.03]
[1755547418537,75.36455506,183.35,183.34,0.03]
[1755547419433,76.08455506,183.35,183.34,0.03]
[1755547419943,92.48830606,183.35,183.34,0.03]
[1755547420232,88.44630307,183.35,183.34,0.03]
[1755547420445,92.48773744,183.35,183.34,0.03]
[1755547420741,15.10621557,183.34,183.3,0.03]
[1755547421037,5.73076977,183.31,183.3,0.03]
[1755547421217,51.95802908,183.31,183.3,0.03]
[1755547421411,54.14555408,183.31,183.3,0.03]
[1755547422410,59.60079383,183.31,183.3,0.03]
[1755547423024,75.4270094,183.31,183.3,0.03]
[1755547424643,101.4270094,183.31,183.3,0.03]
[1755547427047,41.10621557,183.29,183.28,0.03]
[1755547427236,67.06424465,183.29,183.28,0.03]
[1755547427441,26.0,183.26,183.24,0.03]
[1755547427639,47.91659471,183.25,183.24,0.03]
[1755547428338,50.10471871,183.25,183.24,0.03]
[1755547428546,55.56174463,183.25,183.24,0.03]
[1755547429143,60.026025,183.25,183.24,0.03]
[1755547429339,79.88420489,183.25,183.24,0.03]
[1755547430129,41.10621557,183.22,183.18,0.66]
[1755547430350,89.02281028,183.22,183.18,0.66]
[1755547430751,94.48072972,183.22,183.18,0.66]
[1755547432060,94.48072972,183.22,183.12,5.73076977]
[1755547432061,79.37451415,183.22,183.14,5.46021506]
[1755547432274,79.37451415,183.22,183.18,0.66]
[1755547435331,79.37451415,183.22,183.19,0.66]
[1755547436159,79.37451415,183.22,183.21,0.86]
[1755547436534,85.10528415,183.22,183.21,0.86]
[1755547436735,46.54528415,183.22,183.21,0.86]
[1755547436930,75.74868921,183.22,183.21,0.86]
[1755547437636,75.74868921,183.22,183.21,0.2]
[1755547437958,79.95562697,183.22,183.21,0.2]
[1755547438461,79.36562697,183.22,183.21,0.2]
[1755547439636,90.55687097,183.22,183.21,0.2]
[1755547440137,90.55687097,183.22,183.21,0.86]
[1755547440340,51.99687097,183.22,183.21,0.86]
[1755547440539,75.74868921,183.22,183.21,0.86]
[1755547440857,75.76868921,183.22,183.21,0.86]
[1755547441663,75.76868921,183.22,183.21,0.2]
[1755547442356,70.03791944,183.22,183.21,0.2]
[1755547442533,79.38399013,183.22,183.21,0.2]
[1755547442734,80.10399013,183.22,183.21,0.2]
[1755547442958,84.12473448,183.22,183.21,0.2]
[1755547443359,79.38399013,183.22,183.21,0.2]
[1755547448356,104.21806325,183.22,183.21,1e-08]
[1755547448953,65.63806325,183.22,183.21,1e-08]
[1755547449158,104.21806325,183.22,183.21,1e-08]
[1755547452068,100.20524055,183.22,183.21,1e-08]
[1755547452275,104.21736152,183.22,183.21,1e-08]
[1755547452975,104.21756303,183.22,183.21,1e-08]
[1755547455053,41.10621557,183.18,183.17,0.03]
[1755547455252,93.04349329,183.18,183.17,0.03]
[1755547455469,93.72349329,183.18,183.17,0.03]
[1755547455671,26.0,183.14,183.12,0.68]
[1755547455967,44.31076977,183.13,183.12,0.68]
[1755547456184,44.31076977,183.13,183.11,0.68]
[1755547456399,44.31076977,183.13,183.04,5.73076977]
[1755547456400,5.73076977,183.12,183.04,5.73076977]
[1755547456678,26.0,183.13,183.08,0.68]
[1755547456881,22.72382852,183.12,183.08,0.68]
[1755547457049,19.11314984,183.12,183.08,0.68]
[1755547457252,3.60920397,183.11,183.09,0.68]
[1755547457575,38.58,183.1,183.04,0.03]
[1755547457757,5.73076977,183.08,183.04,0.03]
[1755547458083,38.58,183.07,183.05,0.68]
[1755547458261,44.31076977,183.07,183.05,0.68]
[1755547458971,5.46268982,183.06,183.05,0.68]
[1755547459378,5.73076977,183.09,183.05,0.68]
[1755547459566,38.58,183.08,183.05,0.68]
[1755547460275,38.58,183.08,183.05,6.41076977]
[1755547460466,38.58,183.08,183.05,5.73076977]
[1755547460668,38.58,183.08,183.06,0.68]
[1755547461274,5.46179566,183.09,183.06,0.68]
[1755547461465,38.58,183.08,183.06,0.68]
[1755547461659,13.65041923,183.15,183.07,5.73076977]
[1755547461859,10.0,183.2,183.12,5.73076977]
[1755547461860,55.003508,183.13,183.12,5.73076977]
[1755547462165,55.003508,183.13,183.12,0.68]